bitfinex/quotes_ETHUSD_20251021
["timestamp","ask_amount","ask_price","bid_price","bid_amount"]
[1761090968791,6.49805154,3882.6,3882.5,0.002]
[1761090968994,0.54745787,3882.6,3882.5,0.4675]
[1761090969213,3.375,3882.6,3882.5,3.04316001]
[1761090969410,3.375,3882.6,3882.5,0.771816]
[1761090969588,3.375,3882.6,3882.5,0.306316]
[1761090969916,3.375,3882.6,3882.5,3.04316001]
[1761090970614,4.9302,3882.6,3882.5,0.4675]
[1761090970988,4.9302,3882.6,3882.5,3.04316001]
[1761090971819,4.9302,3882.6,3882.5,0.4675]
[1761090972323,4.9302,3882.6,3882.5,0.002]
[1761090972906,4.9302,3882.6,3882.5,0.4675]
[1761090973101,4.9292,3882.6,3882.5,0.77182771]
[1761090973302,7.50479367,3882.6,3882.5,0.002]
[1761090973608,4.9292,3882.6,3882.5,0.002]
[1761090973995,7.50479367,3882.6,3882.5,0.002]
[1761090974195,4.9292,3882.6,3882.5,0.002]
[1761090974413,7.50479367,3882.6,3882.5,0.002]
[1761090974818,8.55723253,3882.6,3882.5,0.002]
[1761090975044,9.00143253,3882.6,3882.5,0.002]
[1761090975246,9.54765128,3882.6,3882.5,0.002]
[1761090975545,9.00143253,3882.6,3882.5,0.002]
[1761090976044,9.10339809,3882.6,3882.5,0.002]
[1761090976552,6.52780442,3882.6,3882.5,0.002]
[1761090976722,5.47536556,3882.6,3882.5,0.002]
[1761090977128,8.49515923,3882.6,3882.5,0.002]
[1761090977328,5.47536556,3882.6,3882.5,0.002]
[1761090978358,8.05095923,3882.6,3882.5,0.002]
[1761090979051,8.49515923,3882.6,3882.5,0.002]
[1761090979351,9.60232467,3882.6,3882.5,0.002]
[1761090979550,7.026731,3882.6,3882.5,0.002]
[1761090979852,5.47436556,3882.6,3882.5,0.4395]
[1761090980030,1.5552,3882.6,3882.5,0.4395]
[1761090980229,1.5552,3882.6,3882.5,3.01516001]
[1761090980552,1.5552,3882.6,3882.5,7.4501993]
[1761090980758,1.5552,3882.6,3882.5,7.0126993]
[1761090980929,1.5552,3882.6,3882.5,7.4501993]
[1761090981855,1.5552,3882.6,3882.5,4.2954543]
[1761090982054,1.5552,3882.6,3882.5,3.8579543]
[1761090982556,1.5552,3882.6,3882.5,4.2954543]
[1761090982754,1.5552,3882.6,3882.5,3.8579543]
[1761090983439,2.10208939,3882.6,3882.5,3.8579543]
[1761090983628,1.5552,3882.6,3882.5,3.8579543]
[1761090983851,1.5552,3882.6,3882.5,4.28860486]
[1761090984059,1.5552,3882.6,3882.5,7.31686487]
[1761090985228,1.5552,3882.6,3882.5,6.88621431]
[1761090985858,1.5552,3882.6,3882.5,4.3105543]
[1761090986449,1.5552,3882.6,3882.5,6.88621431]
[1761090987759,1.5552,3882.6,3882.5,4.3105543]
[1761090988145,1.5552,3882.6,3882.5,6.43361431]
[1761090988480,2.10224779,3882.6,3882.5,3.8579543]
[1761090988761,2.10223655,3882.6,3882.5,3.8579543]
[1761090990678,5.12373022,3882.6,3882.5,0.002]
[1761090990853,5.71154722,3882.6,3882.5,0.002]
[1761090991195,2.69005355,3882.6,3882.5,0.002]
[1761090991484,2.10223655,3882.6,3882.5,0.002]
[1761090993569,5.12373022,3882.6,3882.5,0.002]
[1761090993779,5.92669438,3882.6,3882.5,0.002]
[1761090994078,5.12373022,3882.6,3882.5,0.002]
[1761090994287,5.80759242,3882.6,3882.5,0.002]
[1761090994470,5.12373022,3882.6,3882.5,0.002]
[1761090994676,10.44163944,3882.6,3882.5,0.002]
[1761090994870,10.44163919,3882.6,3882.5,0.002]
[1761090995199,3.36728371,3882.6,3882.5,0.002]
[1761090995379,5.87521521,3882.6,3882.5,0.002]
[1761090995700,8.45080888,3882.6,3882.5,0.002]
[1761090995848,8.89670888,3882.6,3882.5,0.002]
[1761090997162,10.26350365,3882.6,3882.5,0.002]
[1761090997975,8.89670888,3882.6,3882.5,0.002]
[1761090998175,11.54750196,3882.6,3882.5,0.002]
[1761090998712,11.10160196,3882.6,3882.5,0.002]
[1761090998866,4.32001521,3882.6,3882.5,0.002]
[1761090999206,5.87521521,3882.6,3882.5,0.002]
[1761090999365,5.47123655,3882.6,3882.5,0.002]
[1761091000205,8.04583022,3882.6,3882.5,0.002]
[1761091000701,2.10223655,3882.6,3882.5,0.002]
[1761091000905,5.47023655,3882.6,3882.5,0.002]
[1761091003399,1.5552,3882.6,3882.5,4.3105543]
[1761091004570,3.367,3882.6,3882.5,6.88621431]
[1761091004781,3.367,3882.6,3882.5,4.3105543]
[1761091005621,0.68578088,3882.9,3882.5,6.88621431]
[1761091005917,1.5552,3882.7,3882.6,3.71680644]
[1761091006083,1.5552,3882.7,3882.6,1.14122143]
[1761091006280,0.001,3882.9,3882.6,1.16697736]
[1761091006493,1.5552,3882.8,3882.7,7.3865748]
[1761091006714,1.5562,3882.9,3882.7,7.3865748]
[1761091006918,1.5562,3882.9,3882.8,3.028061]
[1761091007218,1.5562,3882.9,3882.7,4.81104747]
[1761091007524,1.5562,3882.9,3882.8,0.4526]
[1761091008541,1.5562,3882.9,3882.7,3.8559543]
[1761091008685,1.5562,3882.9,3882.8,0.4526]
[1761091008889,0.001,3882.9,3882.8,0.4526]
[1761091009191,0.001,3882.9,3882.7,3.8559543]
[1761091009608,0.001,3882.9,3882.8,0.4526]
[1761091009818,0.001,3882.9,3882.7,3.8559543]
[1761091010021,7.496661,3882.8,3882.7,3.8559543]
[1761091010921,4.9212,3882.8,3882.7,3.8559543]
[1761091011486,7.496661,3882.8,3882.7,3.8559543]
[1761091012330,4.9212,3882.8,3882.7,3.8559543]
[1761091012637,4.13079367,3882.6,3882.5,0.002]
[1761091012841,4.54779367,3882.6,3882.5,0.002]
[1761091013143,5.46078025,3882.6,3882.5,0.002]
[1761091013713,5.09504203,3882.6,3882.5,0.002]
[1761091014337,6.00802861,3882.6,3882.5,0.002]
[1761091014633,7.42158095,3882.6,3882.5,0.002]
[1761091014838,6.50859437,3882.6,3882.5,0.002]
[1761091015041,7.42158095,3882.6,3882.5,0.002]
[1761091015408,2.57579308,3882.3,3881.8,3.7599543]
[1761091015606,1.5552,3882.1,3881.8,3.7599543]
[1761091015956,0.54724836,3882.0,3881.8,4.1954543]
[1761091016118,0.54724836,3882.0,3881.9,3.01155811]
[1761091016443,1.5552,3882.1,3881.9,3.01155811]
[1761091016642,0.68401308,3882.6,3882.0,0.4355]
[1761091016826,1.5552,3882.4,3882.0,3.0114331]
[1761091017028,1.5552,3882.2,3882.1,0.1999]
[1761091017219,3.91125085,3882.2,3882.1,0.1999]
[1761091017416,3.91125085,3882.2,3882.1,0.6354]
[1761091017841,3.91125085,3882.2,3882.1,0.1999]
[1761091018007,3.91125085,3882.2,3881.8,4.1954543]
[1761091018205,0.54725085,3882.1,3881.8,4.1954543]
[1761091018402,0.54725085,3882.1,3881.9,3.7599543]
[1761091018747,2.10245085,3882.1,3881.9,3.7599543]
[1761091018922,0.54725085,3882.0,3881.9,3.7599543]
[1761091019101,0.54727291,3882.0,3881.9,3.7599543]
[1761091019307,1.5552,3882.1,3881.9,3.7599543]
[1761091019875,0.96423827,3882.0,3881.7,0.002]
[1761091020136,5.24011105,3881.8,3881.7,0.002]
[1761091020345,5.6773269,3881.8,3881.7,0.002]
[1761091020515,2.57638996,3881.4,3881.3,0.002]
[1761091020721,4.67882823,3881.4,3881.3,0.002]
[1761091020907,8.45962823,3881.4,3881.3,0.002]
[1761091021405,18.96202771,3881.4,3881.3,0.002]
[1761091021606,3.08340272,3881.2,3880.9,0.002]
[1761091021834,5.48192515,3881.2,3880.9,0.002]
[1761091022036,5.89872515,3881.2,3880.9,0.002]
[1761091022339,4.63886829,3880.8,3880.5,0.002]
[1761091022541,18.24854188,3880.8,3880.5,0.002]
[1761091022719,19.41253547,3880.8,3880.5,0.002]
[1761091023241,20.32170048,3880.8,3880.5,0.002]
[1761091023638,3.08380109,3880.6,3880.5,0.002]
[1761091023841,6.09536044,3880.6,3880.5,0.002]
[1761091024046,6.09536044,3880.6,3880.3,0.002]
[1761091024047,3.08393391,3880.4,3880.3,0.002]
[1761091024231,0.50688,3879.5,3878.4,0.002]
[1761091024435,1.5552,3879.1,3878.4,0.002]
[1761091024630,6.1420182,3879.4,3878.4,0.002]
[1761091024631,1.5552,3878.9,3878.4,0.002]
[1761091024837,3.363,3878.8,3878.4,0.4375]
[1761091025031,3.363,3878.8,3878.4,3.01585318]
[1761091025231,3.363,3878.8,3878.6,0.4375]
[1761091025726,3.363,3878.8,3878.6,0.002]
[1761091026256,3.363,3878.8,3878.6,0.4375]
[1761091026627,3.364,3879.0,3878.7,0.4355]
[1761091026858,1.5552,3878.9,3878.6,0.002]
[1761091027160,4.62518258,3878.9,3878.6,0.002]
[1761091027336,4.13338341,3878.7,3878.6,0.002]
[1761091027526,7.92278341,3878.7,3878.6,0.002]
[1761091029234,4.9182,3878.7,3878.6,0.002]
[1761091029442,7.92278341,3878.7,3878.6,0.002]
[1761091029646,9.00169682,3878.7,3878.6,0.002]
[1761091030026,3.08519635,3878.5,3878.4,0.002]
[1761091030237,5.06679635,3878.5,3878.4,0.002]
[1761091031580,0.68128084,3879.5,3878.4,0.002]
[1761091031727,0.2365,3879.8,3878.4,0.4375]
[1761091031926,3.364,3879.3,3878.4,0.4375]
[1761091032160,3.7004,3879.2,3878.4,3.0158295]
[1761091032332,1.5552,3879.0,3878.4,0.4375]
[1761091032531,1.5552,3879.0,3878.4,0.002]
[1761091033126,0.13162456,3879.4,3878.4,0.4375]
[1761091033372,1.5552,3879.2,3878.5,2.57831635]
[1761091033667,1.5552,3879.2,3878.4,3.01587348]
[1761091033833,1.5552,3879.2,3878.6,2.57822736]
[1761091034029,1.5552,3879.2,3878.6,0.4355]
[1761091034374,0.40435043,3879.1,3878.4,0.002]
[1761091034540,1.5552,3878.9,3878.4,0.002]
[1761091034729,1.5552,3878.9,3878.4,0.4375]
[1761091034931,3.364,3879.2,3878.4,0.4375]
[1761091035161,4.9192,3879.2,3879.1,0.1999]
[1761091036863,1.5552,3879.1,3878.8,0.4355]
[1761091037025,3.364,3879.2,3878.8,0.4355]
[1761091037228,1.5552,3879.1,3878.9,2.57804911]
[1761091037424,1.5552,3879.1,3878.9,2.57803239]
[1761091037673,1.5552,3879.1,3879.0,3.01348401]
[1761091037873,1.5552,3879.1,3879.0,0.4355]
[1761091038080,1.5552,3879.1,3878.5,4.1954543]
[1761091038361,1.5552,3879.1,3878.5,4.45600421]
[1761091038538,1.5552,3879.1,3878.4,0.002]
[1761091038990,1.5552,3879.1,3878.4,2.5803728]
[1761091039288,1.5552,3879.1,3878.5,2.57831466]
[1761091039486,1.5552,3879.1,3878.4,0.002]
[1761091039791,1.5552,3879.1,3878.5,0.4603]
[1761091039953,1.5552,3879.1,3878.6,2.57822893]
[1761091040351,1.5552,3879.1,3878.7,0.4603]
[1761091040593,1.5552,3879.1,3878.7,3.03846077]
[1761091041065,1.5552,3879.1,3878.8,0.4603]
[1761091042185,1.5552,3879.1,3878.8,3.0383983]
[1761091042489,1.5552,3879.1,3878.8,0.4603]
[1761091042705,0.68128084,3880.1,3878.9,0.4603]
[1761091042890,0.12778299,3880.1,3878.9,0.4603]
[1761091043090,1.93431767,3880.3,3878.9,3.8233]
[1761091043288,1.93431767,3880.3,3879.1,2.57791755]
[1761091043469,2.06126472,3880.3,3879.2,15.80032176]
[1761091043962,1.93431767,3880.3,3880.2,0.1999]
[1761091044361,1.93431767,3880.3,3879.8,0.1999]
[1761091044790,1.93431767,3880.3,3879.8,0.6424]
[1761091044988,0.40431767,3880.3,3880.2,2.57718674]
[1761091045195,3.363,3880.7,3880.2,0.70279606]
[1761091045494,3.363,3880.8,3880.3,0.4425]
[1761091045660,1.5552,3880.8,3880.6,2.57686738]
[1761091045862,0.6289,3881.8,3880.3,0.4425]
[1761091046068,0.6289,3881.8,3880.8,2.5767805]
[1761091046069,3.363,3881.7,3880.8,2.5767805]
[1761091046294,1.5552,3881.5,3880.4,0.4425]
[1761091046485,2.23681482,3881.6,3880.9,2.57668458]
[1761091046687,0.54397375,3881.5,3880.9,2.57668458]
[1761091046885,0.54397375,3881.5,3880.7,0.4425]
[1761091047275,0.67285849,3881.5,3880.8,2.57676771]
[1761091047566,0.95302668,3881.4,3880.8,2.57676771]
[1761091047765,0.54397375,3881.3,3880.7,0.4425]
[1761091047964,1.5552,3881.1,3880.7,3.01930406]
[1761091048206,1.5552,3881.1,3880.7,0.4425]
[1761091048404,1.5552,3881.1,3880.9,2.5767111]
[1761091048894,1.5552,3881.1,3880.5,0.4425]
[1761091049058,1.5552,3881.1,3880.8,2.57673316]
[1761091049262,1.5552,3881.1,3880.6,3.01942109]
[1761091049458,1.5552,3881.1,3880.8,2.57672725]
[1761091049958,1.5552,3881.1,3880.8,3.01922725]
[1761091050164,1.5552,3881.1,3880.8,0.4425]
[1761091050362,1.5552,3881.1,3880.8,2.57675911]
[1761091050590,1.5552,3881.1,3880.9,0.4425]
[1761091050796,0.40413581,3881.2,3881.1,2.57658911]
[1761091051088,0.40413581,3881.2,3881.1,3.9507543]
[1761091051289,1.5552,3881.3,3881.1,3.9507543]
[1761091053072,2.05520847,3881.3,3881.1,3.7599543]
[1761091053372,0.50000847,3881.3,3881.1,3.7599543]
[1761091053576,3.316,3881.4,3881.1,3.7599543]
[1761091053977,3.316,3881.4,3881.2,3.7599543]
[1761091054498,3.361,3881.3,3881.2,3.7599543]
[1761091054697,2.57613729,3881.8,3881.2,3.7599543]
[1761091054698,4.13141692,3881.7,3881.2,3.7599543]
[1761091054901,1.5552,3881.5,3881.2,3.7599543]
[1761091055103,2.40228027,3881.5,3881.2,3.7599543]
[1761091055405,0.12804622,3882.4,3881.7,2.57616427]
[1761091055698,1.5552,3882.2,3881.8,6.33602868]
[1761091055899,3.361,3882.3,3881.8,6.33602868]
[1761091056212,1.5552,3882.2,3881.8,6.33602868]
[1761091056397,1.5552,3882.2,3881.9,2.57603305]
[1761091056707,4.9162,3882.1,3882.0,2.57596132]
[1761091056866,1.5552,3882.1,3882.0,2.57596132]
[1761091057071,1.5552,3882.1,3882.0,3.01846132]
[1761091058208,1.5552,3882.1,3882.0,0.4425]
[1761091058577,1.5552,3882.1,3882.0,3.01849175]
[1761091060805,3.36,3882.3,3881.7,0.4425]
[1761091060806,1.5552,3882.0,3881.7,0.4425]
[1761091061007,1.5552,3882.2,3881.5,0.4425]
[1761091061212,1.5552,3882.2,3882.1,2.5759254]
[1761091061412,1.5552,3882.2,3882.1,3.0184254]
[1761091062216,4.9152,3882.3,3882.2,2.57585904]
[1761091062389,1.5552,3882.3,3882.2,3.01835904]
[1761091063888,1.5552,3882.3,3882.1,2.57590501]
[1761091064275,1.5552,3882.3,3882.1,3.01840501]
[1761091064480,1.5552,3882.3,3882.2,3.01835904]
[1761091065012,1.5552,3882.3,3882.2,2.57585904]
[1761091065206,1.5552,3882.3,3882.2,3.01835904]
[1761091069792,0.001,3882.6,3882.3,2.57577339]
[1761091070116,1.5562,3882.6,3882.4,2.57571782]
[1761091070520,1.5562,3882.6,3882.3,3.01827149]
[1761091072220,0.54574512,3882.5,3882.4,2.57572635]
[1761091072797,0.54574512,3882.5,3882.3,2.57577838]
[1761091073530,0.54574512,3882.5,3882.4,2.57572635]
[1761091073693,0.54574512,3882.5,3882.1,0.4425]
[1761091073889,0.54574512,3882.5,3882.3,2.57576905]
[1761091075030,0.54574512,3882.5,3882.2,2.57580735]
[1761091075522,0.54574512,3882.5,3882.3,2.57578873]
[1761091075723,0.54574512,3882.5,3882.0,2.57599175]
[1761091075724,0.4348,3882.4,3882.0,2.57599175]
[1761091075930,0.4348,3882.4,3882.1,2.57587918]
[1761091076097,0.54574512,3882.5,3882.1,2.57587918]
[1761091076321,0.54574512,3882.5,3882.2,2.57584979]
[1761091077553,0.54574512,3882.5,3882.1,2.57588964]
[1761091077955,0.98054512,3882.5,3882.1,2.57588964]
[1761091078752,1.5552,3882.3,3882.1,2.57588964]
[1761091078942,0.54574512,3882.2,3882.1,2.57588964]
[1761091079535,0.54574512,3882.2,3882.1,2.5759254]
[1761091081358,0.54574512,3882.4,3882.1,2.57590247]
[1761091081560,3.90174512,3882.3,3882.2,2.57583584]
[1761091081723,5.45694512,3882.3,3882.2,2.57583584]
[1761091082756,2.10094512,3882.3,3882.2,2.57583584]
[1761091082919,2.10094512,3882.3,3882.2,3.04903584]
[1761091083247,2.10094512,3882.3,3882.2,3.61153854]
[1761091084567,2.10094512,3882.3,3882.2,18.11153854]
[1761091085266,2.10094512,3882.3,3882.2,17.54903584]
[1761091085566,0.54574512,3882.3,3882.2,24.66399014]
[1761091085771,0.54574512,3882.4,3882.3,2.5757927]
[1761091086563,0.54574512,3882.4,3882.2,24.66396995]
[1761091086564,2.10094512,3882.4,3882.2,3.7599543]
[1761091086866,5.58674748,3882.3,3881.3,3.7599543]
[1761091087072,0.68588429,3881.6,3880.9,3.355]
[1761091087228,0.91451238,3881.8,3880.9,3.355]
[1761091087229,0.54574512,3881.5,3881.4,2.57638996]
[1761091087428,0.54574512,3881.7,3881.6,2.57625721]
[1761091087654,0.54574512,3881.7,3881.5,3.355]
[1761091087854,0.68588429,3881.9,3881.7,2.57614366]
[1761091088056,0.54864733,3881.8,3881.7,2.57614366]
[1761091088729,0.54864733,3881.8,3881.6,2.57625623]
[1761091088937,0.54864733,3881.7,3881.6,3.04945721]
[1761091089133,2.24108429,3882.0,3881.8,2.57612447]
[1761091089134,0.54864733,3881.9,3881.8,2.57612447]
[1761091089642,0.54864733,3881.9,3881.8,3.04932447]
[1761091091466,0.54864733,3881.9,3881.8,2.57612447]
[1761091091858,0.54864733,3882.1,3882.0,2.57599175]
[1761091092045,0.54864733,3882.2,3882.1,2.5759254]
[1761091092245,0.54864733,3882.3,3882.2,2.57585904]
[1761091092435,0.54864733,3882.4,3882.3,2.5757927]
[1761091092639,0.54864733,3882.4,3882.3,6.335747]
[1761091093371,0.54964733,3882.5,3882.4,2.57572635]
[1761091093550,0.001,3882.5,3882.4,3.04892635]
[1761091094067,0.54964733,3882.5,3882.4,3.04892635]
[1761091094474,0.54944924,3882.5,3882.4,3.04892635]
[1761091094669,0.001,3882.5,3882.4,3.04892635]
[1761091095275,0.001,3882.5,3882.4,7.74734799]
[1761091096536,0.001,3882.5,3882.4,8.25422799]
[1761091097537,1e-08,3882.8,3882.7,3.08240733]
[1761091097777,1e-08,3882.8,3882.7,6.4611626]
[1761091098051,1e-08,3882.8,3882.7,6.90860733]
[1761091098255,1e-08,3882.8,3882.7,7.9508808]
[1761091100675,0.001,3883.7,3883.2,2.57519571]
[1761091100989,0.001,3883.7,3883.2,5.92819571]
[1761091101150,0.001,3883.7,3883.2,6.39719571]
[1761091101348,0.001,3883.7,3883.2,7.31443356]
[1761091102557,0.001,3883.7,3883.2,11.07438786]
[1761091103670,0.001,3883.7,3883.2,10.60538786]
[1761091104887,0.001,3883.7,3883.2,11.03488786]
[1761091112188,0.001,3883.7,3883.2,10.60538786]
[1761091112583,0.001,3883.7,3883.2,11.03488786]
[1761091113487,0.001,3883.7,3883.6,6.33288477]
[1761091113799,0.001,3883.7,3883.6,10.61662456]
[1761091114303,0.001,3883.7,3883.6,11.04612456]
[1761091115677,0.001,3883.7,3883.6,10.61662456]
[1761091116208,0.001,3883.7,3883.6,9.68288477]
[1761091116704,0.001,3883.7,3883.6,10.11238477]
[1761091118393,0.001,3883.7,3883.6,9.68288477]
[1761091119412,0.001,3884.0,3883.8,2.57479787]
[1761091119609,0.001,3884.0,3883.9,2.57473158]
[1761091120107,0.4417,3884.0,3883.9,2.57473158]
[1761091120308,0.001,3884.0,3883.9,2.57473158]
[1761091120882,0.4388,3884.0,3883.9,2.57473158]
[1761091122204,1.994,3884.0,3883.9,3.7569543]
[1761091122405,2.52312224,3884.0,3883.9,3.7569543]
[1761091122713,0.4388,3884.0,3883.9,3.7569543]
[1761091122917,0.4388,3884.0,3883.9,6.33168588]
[1761091124135,0.001,3884.0,3883.9,6.33168588]
[1761091124302,0.001,3884.0,3883.9,10.10918588]
[1761091125102,0.001,3884.0,3883.9,9.67968588]
[1761091126489,0.001,3884.0,3883.9,10.12579377]
[1761091126798,0.001,3884.0,3883.9,10.55529377]
[1761091128494,0.001,3884.0,3883.9,10.12579377]
[1761091128898,0.001,3884.0,3883.9,10.55529377]
[1761091129790,0.001,3884.0,3883.9,10.12579377]
[1761091130120,0.001,3884.0,3883.9,5.92273158]
[1761091130306,0.4366,3884.0,3883.9,5.92273158]
[1761091130898,0.4366,3884.0,3882.8,0.002]
[1761091130899,0.1519,3883.7,3882.8,0.002]
[1761091131089,1.771,3882.9,3882.8,0.002]
[1761091131293,3.25996548,3882.9,3882.8,0.002]
[1761091131808,1.05556548,3882.9,3882.8,0.002]
[1761091132007,0.6494,3882.9,3882.8,0.002]
[1761091132323,0.6494,3882.9,3882.8,2.577461]
[1761091134838,0.96743597,3883.2,3883.1,2.57526203]
[1761091135139,0.54823597,3883.2,3883.1,2.57526203]
[1761091135522,0.54823597,3883.4,3883.1,2.57526203]
[1761091135696,0.4174,3883.2,3883.1,2.57526203]
[1761091135895,0.4174,3883.2,3882.8,0.002]
[1761091136096,0.2339,3882.9,3882.8,2.57741317]
[1761091136404,0.68588429,3883.8,3883.2,2.57519571]
[1761091136604,0.5877,3883.7,3883.4,2.57505674]
[1761091136808,0.5877,3883.7,3882.8,14.502]
[1761091136809,0.92545416,3883.7,3883.3,2.57510706]
[1761091137005,0.98355735,3883.6,3883.4,2.57502966]
[1761091137204,0.1519,3883.7,3883.6,2.57493047]
[1761091137823,0.5877,3883.7,3883.5,2.57494998]
[1761091138026,0.5877,3883.7,3883.4,2.57505962]
[1761091138325,0.4358,3883.6,3883.4,2.57505962]
[1761091139495,0.4358,3883.6,3882.8,14.502]
[1761091139496,0.70485991,3883.6,3882.8,14.502]
[1761091139696,0.70485991,3883.6,3883.2,2.57516288]
[1761091139926,0.4358,3883.5,3883.1,2.57523578]
[1761091140440,0.4358,3883.5,3882.8,0.002]
[1761091140603,1.991,3883.5,3882.9,2.57538524]
[1761091140801,0.2157,3882.9,3882.8,0.002]
[1761091141103,1.7709,3882.9,3882.8,0.002]
[1761091141320,2.2045,3882.9,3882.8,0.002]
[1761091141925,2.75182011,3882.9,3882.8,0.002]
[1761091143130,5.32721478,3882.9,3882.8,0.002]
[1761091143332,6.18605542,3882.9,3882.8,0.002]
[1761091143534,3.61066075,3882.9,3882.8,0.002]
[1761091143831,7.35959408,3882.9,3882.8,0.002]
[1761091144704,9.93498875,3882.9,3882.8,0.002]
[1761091145132,19.63088706,3882.9,3882.8,0.002]
[1761091145331,9.93498875,3882.9,3882.8,0.002]
[1761091147899,10.73795291,3882.9,3882.8,0.002]
[1761091148355,20.43385122,3882.9,3882.8,0.002]
[1761091148549,21.37760176,3882.9,3882.8,0.002]
[1761091148838,4.63774001,3882.5,3882.4,0.002]
[1761091149109,10.44031807,3882.5,3882.4,0.002]
[1761091149402,10.87391807,3882.5,3882.4,0.002]
[1761091150239,14.33390371,3882.1,3882.0,0.002]
[1761091150405,18.90722061,3882.1,3882.0,0.002]
[1761091150601,20.18165427,3882.1,3882.0,0.002]
[1761091151310,20.86229487,3882.1,3882.0,0.002]
[1761091153030,20.18165427,3882.1,3882.0,0.002]
[1761091153968,20.58575625,3882.1,3882.0,0.002]
[1761091154253,20.18165427,3882.1,3882.0,0.002]
[1761091154612,20.58570789,3882.1,3882.0,0.002]
[1761091155341,2.57679624,3880.8,3880.1,0.1908]
[1761091155526,1.5552,3880.6,3880.1,0.1908]
[1761091156144,1.5552,3880.6,3878.8,0.50688]
[1761091156145,2.06208,3880.1,3878.6,0.2019]
[1761091156462,0.50688,3879.3,3878.6,0.002]
[1761091156662,0.2108,3878.7,3878.6,0.002]
[1761091156838,4.9002,3878.7,3878.6,0.4555]
[1761091157617,1.5552,3878.7,3878.6,0.4555]
[1761091158869,1.5552,3878.7,3878.6,0.002]
[1761091162767,4.9012,3878.7,3878.6,0.002]
[1761091165491,0.40432494,3879.0,3878.6,1.03525604]
[1761091165674,0.40432494,3879.0,3878.7,2.57818341]
[1761091165875,0.40432494,3879.0,3878.9,2.57805047]
[1761091166384,2.449,3879.4,3879.2,2.57783932]
[1761091166586,2.449,3879.4,3879.0,3.03398401]
[1761091166782,2.449,3879.4,3879.2,2.57780432]
[1761091166981,0.4602,3879.9,3879.3,2.57778465]
[1761091167292,3.346,3879.8,3879.3,2.57778465]
[1761091167686,1.5552,3879.6,3879.1,0.6513]
[1761091167880,3.346,3879.7,3879.1,0.6513]
[1761091167881,0.4602,3879.9,3879.1,0.6513]
[1761091168078,0.2108,3880.0,3879.1,0.1953]
[1761091168282,1.1408406,3880.4,3879.2,0.456]
[1761091168484,1.5552,3880.2,3879.5,2.57759299]
[1761091168787,0.5416862,3880.1,3879.1,0.1953]
[1761091168996,0.5416862,3880.1,3879.2,3.03384402]
[1761091169168,0.5416862,3880.1,3879.2,0.456]
[1761091169376,2.57732533,3880.0,3879.2,2.5778001]
[1761091169566,1.5552,3879.8,3879.3,2.57775741]
[1761091169988,1.5552,3879.8,3879.2,2.5778436]
[1761091170185,2.0159,3879.8,3879.3,2.57776797]
[1761091170366,0.54252438,3879.7,3879.4,2.57771765]
[1761091171188,0.54252438,3879.7,3879.3,2.57776226]
[1761091171400,0.54252438,3879.7,3879.3,2.57777686]
[1761091171765,0.54252438,3879.7,3879.3,3.03377686]
[1761091172159,0.54252438,3879.7,3879.3,2.57777686]
[1761091172395,0.54252438,3879.7,3879.4,2.5777153]
[1761091173092,0.54252438,3879.7,3879.4,0.456]
[1761091173394,4.9002,3879.6,3879.5,2.57765175]
[1761091173770,3.345,3879.6,3879.3,0.1953]
[1761091173988,3.345,3879.6,3879.5,3.03365175]
[1761091174308,3.88884932,3879.6,3879.5,3.03365175]
[1761091174513,4.9002,3879.6,3879.5,3.03365175]
[1761091174875,0.6806406,3880.4,3879.5,1.03667307]
[1761091175089,0.54393392,3880.3,3879.6,0.456]
[1761091175381,1.5552,3880.3,3879.6,0.456]
[1761091175590,0.54393392,3880.2,3879.6,0.456]
[1761091175894,0.54393392,3880.2,3879.9,2.57736455]
[1761091176093,0.54393392,3880.2,3880.1,2.57725316]
[1761091176496,2.09913392,3880.3,3880.1,2.57725316]
[1761091176677,0.54393392,3880.2,3880.1,2.77255316]
[1761091177085,4.9002,3880.5,3880.4,2.57700344]
[1761091177418,2.09913392,3880.5,3880.4,2.57700344]
[1761091177719,2.09913392,3880.5,3880.4,3.03300344]
[1761091179086,0.40413907,3881.1,3881.0,2.5766555]
[1761091179316,0.54591557,3881.3,3881.1,2.57658911]
[1761091179519,0.54594773,3881.5,3881.4,2.57638996]
[1761091179714,4.42871685,3881.9,3881.4,2.57638996]
[1761091179715,2.10114773,3881.8,3881.4,2.57638686]
[1761091179915,0.54594773,3881.7,3881.4,14.5]
[1761091180326,0.54594773,3881.7,3880.9,0.1826]
[1761091180611,0.4523,3881.7,3881.1,2.57657306]
[1761091180813,0.99824773,3881.7,3881.1,17.07657306]
[1761091181111,0.99824773,3881.7,3881.1,14.5]
[1761091181312,0.54594773,3881.6,3881.1,14.5]
[1761091181521,0.54594773,3881.7,3881.2,2.5765087]
[1761091181725,0.54594773,3881.7,3881.3,2.57645092]
[1761091181922,1.22658833,3881.9,3881.8,2.57612447]
[1761091182122,0.001,3882.0,3881.9,2.57605811]
[1761091182326,0.001,3882.0,3881.3,2.01090361]
[1761091182497,0.001,3882.0,3881.7,2.57617196]
[1761091182826,0.001,3882.0,3881.4,3.03238622]
[1761091183008,0.001,3882.0,3881.7,2.57617454]
[1761091183203,0.001,3882.0,3881.1,14.5]
[1761091183408,0.001,3882.0,3881.5,3.03231941]
[1761091183597,0.001,3882.0,3881.7,2.57614562]
[1761091183797,0.001,3882.0,3881.7,2.57619084]
[1761091184010,0.001,3882.0,3881.8,2.57612447]
[1761091184420,0.001,3882.0,3881.4,2.57635908]
[1761091184593,0.001,3882.0,3881.7,2.57618377]
[1761091184800,0.001,3882.0,3881.9,2.57605811]
[1761091185152,0.001,3882.0,3881.8,0.48176124]
[1761091185310,0.001,3882.0,3881.8,0.456]
[1761091185697,0.6507,3881.9,3879.0,0.1826]
[1761091185911,0.6806406,3881.2,3880.1,0.1953]
[1761091186234,0.54493557,3881.1,3880.2,0.456]
[1761091186423,0.54493557,3881.1,3880.1,0.1953]